[Event "Titled Tuesday Blitz April 19 Early 2022"]
[White "De Silva, L M S T"]
[Black "Urbina Perez, Juan Antonio"]
[WhiteFideId "9953698"]
[BlackFideId "2217368"]
[WhiteElo "1631"]
[BlackElo "2192"]
[Result "1-0"]
[Round "02"]
[TimeControl "180+1"]
[Date "2022.04.19"]
[WhiteClock "0:00:15"]
[BlackClock "0:00:09"]

1. e4 {[%clk 0:03:00]}  c5 {[%clk 0:02:59]} 2. Nf3 {[%clk 0:03:01]}  d6 {[%clk 0:02:59]} 3. Bb5+ {[%clk 0:03:01]}  Bd7 {[%clk 0:02:59]} 4. Bxd7+ {[%clk 0:03:01]}  Nxd7 {[%clk 0:03:00]} 5. O-O {[%clk 0:03:01]}  Ngf6 {[%clk 0:03:00]} 6. Qe2 {[%clk 0:03:01]}  e6 {[%clk 0:02:58]} 7. c3 {[%clk 0:03:02]}  Be7 {[%clk 0:02:54]} 8. d4 {[%clk 0:03:02]}  O-O {[%clk 0:02:51]} 9. e5 {[%clk 0:02:58]}  Nd5 {[%clk 0:02:49]} 10. Nbd2 {[%clk 0:02:58]}  cxd4 {[%clk 0:02:48]} 11. cxd4 {[%clk 0:02:59]}  Rc8 {[%clk 0:02:45]} 12. Ne4 {[%clk 0:02:57]}  dxe5 {[%clk 0:02:45]} 13. dxe5 {[%clk 0:02:58]}  Nc5 {[%clk 0:02:44]} 14. Ng3 {[%clk 0:02:53]}  Qb6 {[%clk 0:02:32]} 15. Nh5 {[%clk 0:02:26]}  Qa6 {[%clk 0:02:11]} 16. Qd1 {[%clk 0:02:19]}  Qa4 {[%clk 0:02:05]} 17. b3 {[%clk 0:02:16]}  Qg4 {[%clk 0:02:01]} 18. Ng3 {[%clk 0:02:12]}  Ne4 {[%clk 0:01:49]} 19. Nxe4 {[%clk 0:02:07]}  Qxe4 {[%clk 0:01:50]} 20. Bb2 {[%clk 0:02:05]}  Qc2 {[%clk 0:01:48]} 21. Qd4 {[%clk 0:01:55]}  Bc5 {[%clk 0:01:37]} 22. Qd2 {[%clk 0:01:55]}  Qxd2 {[%clk 0:01:35]} 23. Nxd2 {[%clk 0:01:56]}  Bb4 {[%clk 0:01:32]} 24. Nc4 {[%clk 0:01:54]}  b5 {[%clk 0:01:25]} 25. Nd6 {[%clk 0:01:53]}  Bxd6 {[%clk 0:01:24]} 26. exd6 {[%clk 0:01:54]}  Rfd8 {[%clk 0:01:24]} 27. Rac1 {[%clk 0:01:33]}  f6 {[%clk 0:01:23]} 28. Bd4 {[%clk 0:00:31]}  Rxc1 {[%clk 0:01:18]} 29. Rxc1 {[%clk 0:00:32]}  Rxd6 {[%clk 0:01:19]} 30. Bc5 {[%clk 0:00:32]}  Rc6 {[%clk 0:01:13]} 31. a3 {[%clk 0:00:32]}  a5 {[%clk 0:01:06]} 32. Kf1 {[%clk 0:00:29]}  Kf7 {[%clk 0:01:04]} 33. Ke2 {[%clk 0:00:29]}  e5 {[%clk 0:01:03]} 34. g3 {[%clk 0:00:28]}  Ke6 {[%clk 0:00:57]} 35. Kd2 {[%clk 0:00:28]}  h5 {[%clk 0:00:51]} 36. b4 {[%clk 0:00:27]}  axb4 {[%clk 0:00:50]} 37. axb4 {[%clk 0:00:28]}  Ra6 {[%clk 0:00:39]} 38. Rc2 {[%clk 0:00:29]}  Ra4 {[%clk 0:00:37]} 39. Rb2 {[%clk 0:00:29]}  f5 {[%clk 0:00:36]} 40. Kc2 {[%clk 0:00:29]}  Ra3 {[%clk 0:00:33]} 41. Kd2 {[%clk 0:00:29]}  Nf6 {[%clk 0:00:31]} 42. Ke2 {[%clk 0:00:28]}  Ne4 {[%clk 0:00:30]} 43. Be3 {[%clk 0:00:27]}  Nc3+ {[%clk 0:00:30]} 44. Kd2 {[%clk 0:00:25]}  Nd5 {[%clk 0:00:30]} 45. Bc5 {[%clk 0:00:24]}  g6 {[%clk 0:00:27]} 46. h4 {[%clk 0:00:24]}  Nf6 {[%clk 0:00:27]} 47. Ke2 {[%clk 0:00:24]}  Ne4 {[%clk 0:00:26]} 48. Be3 {[%clk 0:00:23]}  Nc3+ {[%clk 0:00:26]} 49. Kf1 {[%clk 0:00:23]}  Nd5 {[%clk 0:00:26]} 50. Bc5 {[%clk 0:00:23]}  f4 {[%clk 0:00:26]} 51. Kg2 {[%clk 0:00:23]}  Kf5 {[%clk 0:00:23]} 52. Rd2 {[%clk 0:00:20]}  f3+ {[%clk 0:00:23]} 53. Kh3 {[%clk 0:00:21]}  Nf6 {[%clk 0:00:23]} 54. Rd8 {[%clk 0:00:19]}  Ra1 {[%clk 0:00:22]} 55. g4+ {[%clk 0:00:15]}  hxg4+ {[%clk 0:00:21]} 56. Kh2 {[%clk 0:00:15]}  Rg1 {[%clk 0:00:19]} 57. Kxg1 {[%clk 0:00:15]}  Ne4 {[%clk 0:00:17]} 58. Rf8+ {[%clk 0:00:15]}  Ke6 {[%clk 0:00:17]} 59. Be3 {[%clk 0:00:15]}  Nc3 {[%clk 0:00:16]} 60. Kh2 {[%clk 0:00:14]}  Nd5 {[%clk 0:00:16]} 61. Kg3 {[%clk 0:00:13]}  Nxb4 {[%clk 0:00:12]} 62. Rb8 {[%clk 0:00:14]}  Nd5 {[%clk 0:00:10]} 63. Rxb5 {[%clk 0:00:14]}  e4 {[%clk 0:00:10]} 64. Rxd5 {[%clk 0:00:14]}  Kxd5 {[%clk 0:00:09]} 65. Kxg4 {[%clk 0:00:15]}  Ke5 {[%clk 0:00:09]} 66. Kg5 {[%clk 0:00:15]} 1-0


[Site "https://www.chess.com"]

[Event "Titled Tuesday Blitz April 19 Early 2022"]
[White "De Souza, Cristiano Gomes"]
[Black "Vidonyak, Roman"]
[WhiteFideId "2151758"]
[BlackFideId "14100622"]
[WhiteElo "2068"]
[BlackElo "2481"]
[Result "1-0"]
[Round "02"]
[TimeControl "180+1"]
[Date "2022.04.19"]
[WhiteClock "0:01:34"]
[BlackClock "0:00:08"]

1. d4 {[%clk 0:03:00]}  Nf6 {[%clk 0:02:59]} 2. c4 {[%clk 0:02:59]}  g6 {[%clk 0:03:00]} 3. Nf3 {[%clk 0:02:59]}  Bg7 {[%clk 0:02:59]} 4. Nc3 {[%clk 0:03:00]}  d5 {[%clk 0:03:00]} 5. Bf4 {[%clk 0:02:59]}  O-O {[%clk 0:02:56]} 6. e3 {[%clk 0:02:59]}  c5 {[%clk 0:02:56]} 7. dxc5 {[%clk 0:02:58]}  Qa5 {[%clk 0:02:55]} 8. Rc1 {[%clk 0:02:58]}  dxc4 {[%clk 0:02:54]} 9. Bxc4 {[%clk 0:02:58]}  Qxc5 {[%clk 0:02:51]} 10. Nb5 {[%clk 0:02:58]}  Qb4+ {[%clk 0:02:07]} 11. Kf1 {[%clk 0:02:56]}  Na6 {[%clk 0:01:56]} 12. a3 {[%clk 0:02:55]}  Qa5 {[%clk 0:01:52]} 13. Nc7 {[%clk 0:02:52]}  Nxc7 {[%clk 0:01:47]} 14. Bxc7 {[%clk 0:02:51]}  Qh5 {[%clk 0:01:47]} 15. Be2 {[%clk 0:02:43]}  Qd5 {[%clk 0:01:37]} 16. h3 {[%clk 0:02:36]}  Be6 {[%clk 0:01:34]} 17. g3 {[%clk 0:02:24]}  Rac8 {[%clk 0:01:33]} 18. Be5 {[%clk 0:02:20]}  Rxc1 {[%clk 0:01:18]} 19. Qxc1 {[%clk 0:02:19]}  Rd8 {[%clk 0:01:05]} 20. Kg2 {[%clk 0:02:19]}  Rc8 {[%clk 0:01:03]} 21. Qd1 {[%clk 0:02:09]}  Qc6 {[%clk 0:01:00]} 22. Qd4 {[%clk 0:01:57]}  Bd5 {[%clk 0:00:51]} 23. Rd1 {[%clk 0:01:51]}  Bb3 {[%clk 0:00:39]} 24. Rd3 {[%clk 0:01:45]}  Qc2 {[%clk 0:00:32]} 25. Bd1 {[%clk 0:01:41]}  Qc4 {[%clk 0:00:11]} 26. Bxb3 {[%clk 0:01:39]}  Qc1 {[%clk 0:00:09]} 27. Rc3 {[%clk 0:01:34]}  Rxc3 {[%clk 0:00:08]} 28. Qxc3 {[%clk 0:01:34]} 1-0


[Site "https://www.chess.com"]

[Event "Titled Tuesday Blitz April 19 Early 2022"]
[White "Demchenko, Anton"]
[Black "Rabineau, Clement"]
[WhiteFideId "4160258"]
[BlackFideId "628891"]
[WhiteElo "2539"]
[BlackElo "2237"]
[Result "1-0"]
[Round "02"]
[TimeControl "180+1"]
[Date "2022.04.19"]
[WhiteClock "0:00:43"]
[BlackClock "0:00:02"]

1. e4 {[%clk 0:02:54]}  d6 {[%clk 0:03:00]} 2. d4 {[%clk 0:02:54]}  g6 {[%clk 0:03:01]} 3. Nc3 {[%clk 0:02:55]}  Bg7 {[%clk 0:03:01]} 4. Nf3 {[%clk 0:02:54]}  Nf6 {[%clk 0:03:01]} 5. Be2 {[%clk 0:02:55]}  O-O {[%clk 0:03:01]} 6. O-O {[%clk 0:02:56]}  Nc6 {[%clk 0:03:01]} 7. d5 {[%clk 0:02:54]}  Nb8 {[%clk 0:03:00]} 8. Re1 {[%clk 0:02:53]}  c6 {[%clk 0:03:00]} 9. a4 {[%clk 0:02:53]}  Bg4 {[%clk 0:02:54]} 10. h3 {[%clk 0:02:49]}  Bxf3 {[%clk 0:02:55]} 11. Bxf3 {[%clk 0:02:50]}  Nbd7 {[%clk 0:02:51]} 12. a5 {[%clk 0:02:49]}  cxd5 {[%clk 0:02:22]} 13. exd5 {[%clk 0:02:49]}  Rc8 {[%clk 0:02:21]} 14. Be3 {[%clk 0:02:48]}  a6 {[%clk 0:02:15]} 15. Be2 {[%clk 0:02:44]}  Qc7 {[%clk 0:01:25]} 16. Na4 {[%clk 0:02:35]}  Qxc2 {[%clk 0:01:19]} 17. Ra3 {[%clk 0:02:12]}  Qxd1 {[%clk 0:00:56]} 18. Rxd1 {[%clk 0:02:13]}  Ne4 {[%clk 0:00:54]} 19. Rb3 {[%clk 0:02:00]}  Rc7 {[%clk 0:00:35]} 20. Rb4 {[%clk 0:01:40]}  Nec5 {[%clk 0:00:33]} 21. Nb6 {[%clk 0:01:40]}  Nxb6 {[%clk 0:00:20]} 22. axb6 {[%clk 0:01:41]}  Rcc8 {[%clk 0:00:18]} 23. Rd2 {[%clk 0:01:40]}  h5 {[%clk 0:00:13]} 24. g3 {[%clk 0:01:40]}  Nd7 {[%clk 0:00:13]} 25. Re4 {[%clk 0:01:37]}  Rfe8 {[%clk 0:00:13]} 26. g4 {[%clk 0:01:30]}  Nc5 {[%clk 0:00:13]} 27. Rb4 {[%clk 0:01:29]}  hxg4 {[%clk 0:00:12]} 28. hxg4 {[%clk 0:01:30]}  Kf8 {[%clk 0:00:09]} 29. g5 {[%clk 0:01:30]}  Be5 {[%clk 0:00:09]} 30. f4 {[%clk 0:01:30]}  Bg7 {[%clk 0:00:09]} 31. Kg2 {[%clk 0:01:30]}  Red8 {[%clk 0:00:09]} 32. Bg4 {[%clk 0:01:30]}  Rb8 {[%clk 0:00:08]} 33. Kf3 {[%clk 0:01:28]}  Kg8 {[%clk 0:00:08]} 34. Rc4 {[%clk 0:01:20]}  a5 {[%clk 0:00:04]} 35. Bxc5 {[%clk 0:00:45]}  dxc5 {[%clk 0:00:05]} 36. Rxc5 {[%clk 0:00:46]}  Rd6 {[%clk 0:00:05]} 37. Rb5 {[%clk 0:00:43]}  a4 {[%clk 0:00:04]} 38. Rc2 {[%clk 0:00:42]}  e6 {[%clk 0:00:03]} 39. dxe6 {[%clk 0:00:43]}  fxe6 {[%clk 0:00:04]} 40. Re2 {[%clk 0:00:42]}  Rd3+ {[%clk 0:00:03]} 41. Kg2 {[%clk 0:00:42]}  Rb3 {[%clk 0:00:03]} 42. Bxe6+ {[%clk 0:00:42]}  Kh7 {[%clk 0:00:03]} 43. Bxb3 {[%clk 0:00:43]}  axb3 {[%clk 0:00:03]} 44. Rxb3 {[%clk 0:00:44]}  Rf8 {[%clk 0:00:02]} 45. Kg3 {[%clk 0:00:43]} 1-0


[Site "https://www.chess.com"]

[Event "Titled Tuesday Blitz April 19 Early 2022"]
[White "Derraugh, Geordie"]
[Black "Petrovskyi, Vadym"]
[WhiteFideId "2603950"]
[BlackFideId "14165210"]
[WhiteElo "2116"]
[BlackElo "2400"]
[Result "0-1"]
[Round "02"]
[TimeControl "180+1"]
[Date "2022.04.19"]
[WhiteClock "0:00:02"]
[BlackClock "0:00:09"]

1. e4 {[%clk 0:03:00]}  c5 {[%clk 0:02:59]} 2. Nf3 {[%clk 0:03:00]}  d6 {[%clk 0:03:00]} 3. Bb5+ {[%clk 0:03:00]}  Bd7 {[%clk 0:02:59]} 4. Bxd7+ {[%clk 0:03:00]}  Qxd7 {[%clk 0:03:00]} 5. d4 {[%clk 0:02:58]}  cxd4 {[%clk 0:02:59]} 6. Qxd4 {[%clk 0:02:51]}  Nc6 {[%clk 0:02:53]} 7. Qe3 {[%clk 0:02:50]}  g6 {[%clk 0:02:39]} 8. O-O {[%clk 0:02:50]}  Rc8 {[%clk 0:02:34]} 9. e5 {[%clk 0:02:34]}  d5 {[%clk 0:02:26]} 10. e6 {[%clk 0:02:29]}  fxe6 {[%clk 0:02:21]} 11. Re1 {[%clk 0:02:22]}  Bh6 {[%clk 0:02:11]} 12. Qc3 {[%clk 0:02:09]}  d4 {[%clk 0:02:07]} 13. Qb3 {[%clk 0:02:06]}  Bxc1 {[%clk 0:02:04]} 14. Rxc1 {[%clk 0:02:06]}  Nf6 {[%clk 0:02:03]} 15. Re1 {[%clk 0:01:59]}  Nd5 {[%clk 0:02:01]} 16. Nbd2 {[%clk 0:01:36]}  O-O {[%clk 0:01:59]} 17. Nc4 {[%clk 0:01:32]}  Nf4 {[%clk 0:01:48]} 18. g3 {[%clk 0:01:21]}  Nh3+ {[%clk 0:01:34]} 19. Kg2 {[%clk 0:01:20]}  Nxf2 {[%clk 0:01:00]} 20. Kxf2 {[%clk 0:01:18]}  Qd5 {[%clk 0:00:55]} 21. Nd2 {[%clk 0:01:14]}  Nb4 {[%clk 0:00:40]} 22. Qxd5 {[%clk 0:00:53]}  exd5 {[%clk 0:00:41]} 23. Rxe7 {[%clk 0:00:52]}  Rxc2 {[%clk 0:00:37]} 24. Kg1 {[%clk 0:00:52]}  Nd3 {[%clk 0:00:29]} 25. Rxb7 {[%clk 0:00:47]}  Nc5 {[%clk 0:00:29]} 26. Rc7 {[%clk 0:00:38]}  d3 {[%clk 0:00:29]} 27. b4 {[%clk 0:00:28]}  Na6 {[%clk 0:00:04]} 28. Rxc2 {[%clk 0:00:26]}  dxc2 {[%clk 0:00:05]} 29. a3 {[%clk 0:00:24]}  Rc8 {[%clk 0:00:05]} 30. Rc1 {[%clk 0:00:24]}  Rc3 {[%clk 0:00:04]} 31. Ne1 {[%clk 0:00:19]}  Rxa3 {[%clk 0:00:03]} 32. Nxc2 {[%clk 0:00:19]}  Rc3 {[%clk 0:00:04]} 33. Kf2 {[%clk 0:00:12]}  Nxb4 {[%clk 0:00:03]} 34. Nxb4 {[%clk 0:00:12]}  Rxc1 {[%clk 0:00:04]} 35. Nxd5 {[%clk 0:00:12]}  a5 {[%clk 0:00:03]} 36. Nb3 {[%clk 0:00:11]}  Rd1 {[%clk 0:00:02]} 37. Ne7+ {[%clk 0:00:06]}  Kf7 {[%clk 0:00:02]} 38. Nxg6 {[%clk 0:00:06]}  a4 {[%clk 0:00:02]} 39. Nc5 {[%clk 0:00:05]}  a3 {[%clk 0:00:02]} 40. Ne5+ {[%clk 0:00:05]}  Kg7 {[%clk 0:00:02]} 41. Nb3 {[%clk 0:00:04]}  a2 {[%clk 0:00:02]} 42. Nc4 {[%clk 0:00:03]}  Rb1 {[%clk 0:00:03]} 43. Ncd2 {[%clk 0:00:04]}  Rb2 {[%clk 0:00:03]} 44. Ke3 {[%clk 0:00:04]}  Rb1 {[%clk 0:00:03]} 45. Kd3 {[%clk 0:00:04]}  a1=Q {[%clk 0:00:04]} 46. Nxa1 {[%clk 0:00:03]}  Rxa1 {[%clk 0:00:05]} 47. Nf3 {[%clk 0:00:03]}  Kg6 {[%clk 0:00:05]} 48. Ke3 {[%clk 0:00:04]}  Kf5 {[%clk 0:00:06]} 49. h3 {[%clk 0:00:04]}  Ra2 {[%clk 0:00:05]} 50. g4+ {[%clk 0:00:04]}  Kf6 {[%clk 0:00:05]} 51. Kf4 {[%clk 0:00:03]}  Ra4+ {[%clk 0:00:05]} 52. Kg3 {[%clk 0:00:03]}  Kg6 {[%clk 0:00:05]} 53. h4 {[%clk 0:00:04]}  Kf6 {[%clk 0:00:05]} 54. h5 {[%clk 0:00:04]}  Ke6 {[%clk 0:00:05]} 55. Kh4 {[%clk 0:00:04]}  Kf6 {[%clk 0:00:05]} 56. Kg3 {[%clk 0:00:03]}  Ra3 {[%clk 0:00:06]} 57. Kf4 {[%clk 0:00:03]}  h6 {[%clk 0:00:05]} 58. Kg3 {[%clk 0:00:04]}  Kf7 {[%clk 0:00:05]} 59. Kf4 {[%clk 0:00:04]}  Ke7 {[%clk 0:00:05]} 60. Kg3 {[%clk 0:00:04]}  Kf7 {[%clk 0:00:06]} 61. Kf4 {[%clk 0:00:05]}  Kf6 {[%clk 0:00:07]} 62. Kg3 {[%clk 0:00:05]}  Rb3 {[%clk 0:00:07]} 63. Kf4 {[%clk 0:00:06]}  Rb4+ {[%clk 0:00:08]} 64. Kg3 {[%clk 0:00:06]}  Ra4 {[%clk 0:00:09]} 65. Kh3 {[%clk 0:00:06]}  Ke6 {[%clk 0:00:09]} 66. Kg3 {[%clk 0:00:06]}  Kd5 {[%clk 0:00:10]} 67. Nh4 {[%clk 0:00:05]}  Ke4 {[%clk 0:00:09]} 68. Nf5 {[%clk 0:00:06]}  Ra3+ {[%clk 0:00:10]} 69. Kh4 {[%clk 0:00:05]}  Kf4 {[%clk 0:00:10]} 70. Ne7 {[%clk 0:00:02]}  Ra1 {[%clk 0:00:09]} 71. Ng6+ {[%clk 0:00:02]}  Kf3 {[%clk 0:00:09]} 0-1


[Site "https://www.chess.com"]

[Event "Titled Tuesday Blitz April 19 Early 2022"]
[White "Devaev, Alexander"]
[Black "Salem, A.R. Saleh"]
[WhiteFideId "4169395"]
[BlackFideId "9301348"]
[WhiteElo "2185"]
[BlackElo "2657"]
[Result "0-1"]
[Round "02"]
[TimeControl "180+1"]
[Date "2022.04.19"]
[WhiteClock "0:01:06"]
[BlackClock "0:02:15"]

1. Nf3 {[%clk 0:03:00]}  Nf6 {[%clk 0:02:59]} 2. d4 {[%clk 0:03:01]}  g6 {[%clk 0:02:59]} 3. c4 {[%clk 0:03:01]}  Bg7 {[%clk 0:03:00]} 4. Nc3 {[%clk 0:03:02]}  O-O {[%clk 0:03:00]} 5. e4 {[%clk 0:03:03]}  d6 {[%clk 0:03:01]} 6. h3 {[%clk 0:03:03]}  e5 {[%clk 0:03:02]} 7. d5 {[%clk 0:03:03]}  a5 {[%clk 0:03:01]} 8. Bg5 {[%clk 0:03:04]}  h6 {[%clk 0:03:00]} 9. Be3 {[%clk 0:03:04]}  Na6 {[%clk 0:03:00]} 10. g4 {[%clk 0:03:05]}  Nc5 {[%clk 0:02:58]} 11. Nd2 {[%clk 0:03:05]}  a4 {[%clk 0:02:58]} 12. Be2 {[%clk 0:03:06]}  c6 {[%clk 0:02:58]} 13. h4 {[%clk 0:03:04]}  Qa5 {[%clk 0:02:57]} 14. Rc1 {[%clk 0:03:02]}  Nfxe4 {[%clk 0:02:54]} 15. Ncxe4 {[%clk 0:02:37]}  Nxe4 {[%clk 0:02:55]} 16. f3 {[%clk 0:02:35]}  Ng3 {[%clk 0:02:53]} 17. Rg1 {[%clk 0:02:33]}  Nxe2 {[%clk 0:02:53]} 18. Kxe2 {[%clk 0:02:34]}  cxd5 {[%clk 0:02:50]} 19. cxd5 {[%clk 0:02:34]}  Qxd5 {[%clk 0:02:48]} 20. Ne4 {[%clk 0:02:34]}  Qxa2 {[%clk 0:02:48]} 21. Rc2 {[%clk 0:02:16]}  Be6 {[%clk 0:02:47]} 22. Qxd6 {[%clk 0:02:15]}  a3 {[%clk 0:02:36]} 23. Qb4 {[%clk 0:02:00]}  Rfc8 {[%clk 0:02:32]} 24. Rgc1 {[%clk 0:01:56]}  axb2 {[%clk 0:02:29]} 25. Rxb2 {[%clk 0:01:52]}  Rxc1 {[%clk 0:02:26]} 26. Bxc1 {[%clk 0:01:51]}  Qc4+ {[%clk 0:02:16]} 27. Kf2 {[%clk 0:01:06]}  Qxc1 {[%clk 0:02:15]} 0-1


[Site "https://www.chess.com"]

[Event "Titled Tuesday Blitz April 19 Early 2022"]
[White "Dixit, Nikhil"]
[Black "Ardila, Oscar Humberto"]
[WhiteFideId "5059534"]
[BlackFideId "4404742"]
[WhiteElo "2223"]
[BlackElo "1983"]
[Result "1/2-1/2"]
[Round "02"]
[TimeControl "180+1"]
[Date "2022.04.19"]
[WhiteClock "0:01:16"]
[BlackClock "0:01:50"]

1. e4 {[%clk 0:03:00]}  e5 {[%clk 0:02:59]} 2. Nf3 {[%clk 0:02:34]}  Nf6 {[%clk 0:02:59]} 3. Nc3 {[%clk 0:02:35]}  Nc6 {[%clk 0:02:59]} 4. d4 {[%clk 0:02:34]}  exd4 {[%clk 0:02:59]} 5. Nxd4 {[%clk 0:02:35]}  Bb4 {[%clk 0:03:00]} 6. Nxc6 {[%clk 0:02:35]}  bxc6 {[%clk 0:03:01]} 7. Bd3 {[%clk 0:02:36]}  d5 {[%clk 0:03:01]} 8. exd5 {[%clk 0:02:37]}  cxd5 {[%clk 0:03:02]} 9. O-O {[%clk 0:02:37]}  O-O {[%clk 0:03:02]} 10. Bg5 {[%clk 0:02:37]}  c6 {[%clk 0:03:02]} 11. Qf3 {[%clk 0:02:38]}  Bd6 {[%clk 0:03:03]} 12. Rae1 {[%clk 0:02:38]}  h6 {[%clk 0:03:02]} 13. Bxf6 {[%clk 0:02:38]}  Qxf6 {[%clk 0:03:03]} 14. Qxf6 {[%clk 0:02:38]}  gxf6 {[%clk 0:03:03]} 15. Ne2 {[%clk 0:02:38]}  Rb8 {[%clk 0:03:04]} 16. b3 {[%clk 0:02:37]}  Bb4 {[%clk 0:02:57]} 17. Rd1 {[%clk 0:02:36]}  Bg4 {[%clk 0:02:56]} 18. f3 {[%clk 0:02:34]}  Bc5+ {[%clk 0:02:54]} 19. Kh1 {[%clk 0:02:33]}  Bd7 {[%clk 0:02:53]} 20. Ng3 {[%clk 0:02:32]}  Rfe8 {[%clk 0:02:51]} 21. Nf5 {[%clk 0:02:32]}  h5 {[%clk 0:02:34]} 22. Ng3 {[%clk 0:02:27]}  h4 {[%clk 0:02:34]} 23. Nf5 {[%clk 0:02:27]}  Bxf5 {[%clk 0:02:16]} 24. Bxf5 {[%clk 0:02:28]}  Re2 {[%clk 0:02:16]} 25. Bd3 {[%clk 0:02:15]}  Re3 {[%clk 0:02:15]} 26. Rde1 {[%clk 0:02:12]}  Rbe8 {[%clk 0:02:15]} 27. Rxe3 {[%clk 0:02:12]}  Rxe3 {[%clk 0:02:15]} 28. f4 {[%clk 0:01:28]}  Kf8 {[%clk 0:02:11]} 29. Rf3 {[%clk 0:01:26]}  Re1+ {[%clk 0:01:55]} 30. Rf1 {[%clk 0:01:20]}  Re3 {[%clk 0:01:50]} 31. Rf3 {[%clk 0:01:18]}  Re1+ {[%clk 0:01:50]} 32. Rf1 {[%clk 0:01:16]}  Re3 {[%clk 0:01:50]} 1/2-1/2


[Site "https://www.chess.com"]

[Event "Titled Tuesday Blitz April 19 Early 2022"]
[White "Donchenko, Alexander"]
[Black "Lewtak, Damian"]
[WhiteFideId "24603295"]
[BlackFideId "1141724"]
[WhiteElo "2539"]
[BlackElo "2362"]
[Result "1-0"]
[Round "02"]
[TimeControl "180+1"]
[Date "2022.04.19"]
[WhiteClock "0:00:50"]
[BlackClock "0:00:24"]

1. e4 {[%clk 0:03:00]}  b6 {[%clk 0:03:00]} 2. d4 {[%clk 0:03:00]}  Bb7 {[%clk 0:03:01]} 3. Bd3 {[%clk 0:03:00]}  d6 {[%clk 0:02:58]} 4. Nf3 {[%clk 0:02:59]}  Nd7 {[%clk 0:02:58]} 5. O-O {[%clk 0:02:58]}  g6 {[%clk 0:02:57]} 6. c4 {[%clk 0:02:57]}  Bg7 {[%clk 0:02:58]} 7. Nc3 {[%clk 0:02:57]}  e6 {[%clk 0:02:58]} 8. Be3 {[%clk 0:02:50]}  Ne7 {[%clk 0:02:57]} 9. Qd2 {[%clk 0:02:49]}  O-O {[%clk 0:02:56]} 10. Bh6 {[%clk 0:02:49]}  c5 {[%clk 0:02:55]} 11. Bxg7 {[%clk 0:02:48]}  Kxg7 {[%clk 0:02:55]} 12. Rad1 {[%clk 0:02:47]}  a6 {[%clk 0:02:54]} 13. Rfe1 {[%clk 0:02:47]}  e5 {[%clk 0:02:47]} 14. dxc5 {[%clk 0:02:38]}  dxc5 {[%clk 0:02:28]} 15. Bc2 {[%clk 0:02:38]}  Bc6 {[%clk 0:02:25]} 16. Ba4 {[%clk 0:02:37]}  Bxa4 {[%clk 0:02:06]} 17. Nxa4 {[%clk 0:02:38]}  Nf6 {[%clk 0:01:53]} 18. Nxe5 {[%clk 0:02:34]}  Qc7 {[%clk 0:01:49]} 19. Qd6 {[%clk 0:02:33]}  Qxd6 {[%clk 0:01:37]} 20. Rxd6 {[%clk 0:02:34]}  Rfe8 {[%clk 0:01:35]} 21. Nxb6 {[%clk 0:02:31]}  Nc8 {[%clk 0:01:26]} 22. Nxc8 {[%clk 0:02:14]}  Raxc8 {[%clk 0:01:18]} 23. f4 {[%clk 0:02:12]}  Rcd8 {[%clk 0:01:14]} 24. Rd3 {[%clk 0:01:52]}  Rxd3 {[%clk 0:00:59]} 25. Nxd3 {[%clk 0:01:53]}  Rxe4 {[%clk 0:00:59]} 26. Rxe4 {[%clk 0:01:41]}  Nxe4 {[%clk 0:01:00]} 27. Kf1 {[%clk 0:01:30]}  Kf6 {[%clk 0:00:44]} 28. Ke2 {[%clk 0:01:29]}  Ke6 {[%clk 0:00:43]} 29. Ke3 {[%clk 0:01:29]}  f5 {[%clk 0:00:43]} 30. g3 {[%clk 0:01:29]}  Kd6 {[%clk 0:00:42]} 31. Nf2 {[%clk 0:01:28]}  Nf6 {[%clk 0:00:40]} 32. Kd3 {[%clk 0:01:28]}  Kc6 {[%clk 0:00:40]} 33. Kc3 {[%clk 0:01:27]}  a5 {[%clk 0:00:40]} 34. Kb3 {[%clk 0:01:27]}  Nd7 {[%clk 0:00:35]} 35. Ka4 {[%clk 0:01:26]}  Nb6+ {[%clk 0:00:34]} 36. Kb3 {[%clk 0:01:26]}  a4+ {[%clk 0:00:32]} 37. Kc3 {[%clk 0:01:27]}  Nd7 {[%clk 0:00:31]} 38. b3 {[%clk 0:01:21]}  axb3 {[%clk 0:00:30]} 39. Kxb3 {[%clk 0:01:22]}  Nf6 {[%clk 0:00:29]} 40. Nd3 {[%clk 0:01:10]}  Ne4 {[%clk 0:00:29]} 41. Ne5+ {[%clk 0:01:09]}  Kd6 {[%clk 0:00:26]} 42. Nf7+ {[%clk 0:01:07]}  Kc6 {[%clk 0:00:25]} 43. Ng5 {[%clk 0:01:07]}  Nd2+ {[%clk 0:00:23]} 44. Kc3 {[%clk 0:01:06]}  Nf1 {[%clk 0:00:23]} 45. Nf3 {[%clk 0:00:57]}  Ne3 {[%clk 0:00:23]} 46. Kd3 {[%clk 0:00:53]}  Ng4 {[%clk 0:00:23]} 47. Ne5+ {[%clk 0:00:50]}  Kd6 {[%clk 0:00:24]} 48. Nxg4 {[%clk 0:00:49]}  fxg4 {[%clk 0:00:24]} 49. Ke4 {[%clk 0:00:50]} 1-0


[Site "https://www.chess.com"]